bitfinex/quotes_ETHUSD_20260313
["timestamp","ask_amount","ask_price","bid_price","bid_amount"]
[1773365333632,1.17713532,2123.8,2123.5,1.595]
[1773365334123,1.17713532,2123.8,2123.3,0.001]
[1773365334322,1.63592153,2123.8,2123.3,0.001]
[1773365334496,0.31633794,2123.7,2123.3,0.001]
[1773365334697,0.25418744,2123.7,2123.4,2.77643162]
[1773365334913,1.56112858,2125.2,2123.5,0.46673003]
[1773365334914,0.45878621,2124.3,2123.5,0.46673003]
[1773365335431,1.63564813,2124.3,2123.6,1.64397621]
[1773365335618,1.63564813,2124.3,2123.7,2.30970159]
[1773365335815,1.63564813,2124.3,2123.7,2.77643162]
[1773365336019,4.70733357,2124.4,2123.7,2.77643162]
[1773365336020,1.67303072,2124.5,2123.8,0.46673003]
[1773365337900,1.67303072,2124.5,2123.9,1.1770799]
[1773365339550,0.45878621,2124.4,2123.7,3.48684198]
[1773365339855,0.49424652,2124.3,2123.8,1.595]
[1773365340169,1.17691366,2124.2,2123.8,1.595]
[1773365340950,1.63569987,2124.2,2123.8,1.595]
[1773365342168,0.49424652,2124.1,2123.4,0.46673003]
[1773365342347,0.49424652,2124.1,2123.4,3.23808546]
[1773365342849,0.49424652,2124.1,2123.4,2.06073003]
[1773365343057,0.49424652,2124.1,2123.4,3.23808077]
[1773365343237,0.49424652,2124.1,2123.4,2.06073003]
[1773365343439,0.49424652,2124.1,2123.4,1.594]
[1773365343855,0.49424652,2124.1,2123.3,0.001]
[1773365344044,0.45878621,2123.9,2123.3,0.001]
[1773365345152,0.45878621,2123.8,2123.1,0.001]
[1773365345353,0.45878621,2123.7,2123.1,0.001]
[1773365346134,0.45878621,2123.5,2123.1,0.001]
[1773365346359,1.17724618,2123.6,2123.1,0.001]
[1773365346863,1.63603239,2123.6,2123.1,0.001]
[1773365348136,0.45878621,2123.5,2123.1,0.001]
[1773365350357,1.17727686,2123.6,2123.1,0.001]
[1773365350529,1.17727686,2123.6,2123.1,0.46773003]
[1773365352465,1.17727686,2123.6,2122.7,4.71195375]
[1773365352466,0.45878621,2123.5,2122.7,0.001]
[1773365353032,0.45878621,2123.4,2122.7,0.001]
[1773365353231,1.63606307,2123.6,2122.8,0.46673003]
[1773365353462,0.45878621,2123.5,2122.8,0.46673003]
[1773365353957,0.03546031,2123.5,2122.9,0.46673003]
[1773365354162,0.49424652,2123.5,2122.7,1.592]
[1773365354557,0.45878621,2123.3,2122.7,1.592]
[1773365354864,0.45878621,2123.3,2122.7,1.17873985]
[1773365355063,1.17735706,2123.4,2122.7,1.64546988]
[1773365355361,0.45878621,2123.4,2122.8,0.46673003]
[1773365355938,1.21279571,2123.5,2122.8,0.46673003]
[1773365356161,1.67158192,2123.5,2122.8,0.46673003]
[1773365356883,1.17719566,2123.7,2123.0,0.46773003]
[1773365357172,1.6359322,2123.8,2123.1,0.46673003]
[1773365357542,1.67139251,2123.8,2123.1,0.46673003]
[1773365359777,0.45878621,2123.7,2123.2,1.17746797]
[1773365361991,1.2126063,2123.8,2123.2,1.67598576]
[1773365362163,1.68072474,2123.8,2123.2,1.67598576]
[1773365362562,0.46811844,2123.7,2123.2,0.49851779]
[1773365362767,0.46811844,2123.5,2123.0,0.001]
[1773365362953,0.50357875,2123.4,2123.0,0.001]
[1773365363751,1.17741251,2123.3,2123.0,0.001]
[1773365365988,5.21305581,2123.4,2123.0,0.001]
[1773365365989,0.03546031,2123.4,2123.1,0.49851779]
[1773365366193,1.177235,2123.7,2123.1,0.49851779]
[1773365366855,1.64529307,2123.8,2123.1,0.49851779]
[1773365370188,1.64529307,2123.8,2123.3,0.001]
[1773365370590,0.002,2123.6,2123.3,0.001]
[1773365373313,0.002,2123.6,2123.0,4.7110942]
[1773365373314,0.46811844,2123.5,2123.0,0.001]
[1773365373611,0.52698629,2123.4,2123.0,0.001]
[1773365373976,0.52698629,2123.4,2123.0,1.17857504]
[1773365374174,0.52698629,2123.4,2123.1,0.03518942]
[1773365374380,1.70434642,2123.4,2123.0,1.17857504]
[1773365375190,1.70434642,2123.4,2123.0,1.17857561]
[1773365376309,1.17928582,2123.6,2123.2,0.49851779]
[1773365376806,1.64740426,2123.6,2123.1,1.21266874]
[1773365377304,1.64740426,2123.6,2123.1,1.71118653]
[1773365377916,0.002,2123.6,2123.2,0.49851779]
[1773365378119,0.002,2123.8,2123.4,0.49851779]
[1773365378278,0.002,2123.8,2123.5,0.49851779]
[1773365378480,0.002,2123.8,2123.6,1.17724618]
[1773365379103,0.002,2123.8,2123.7,0.49851779]
[1773365379306,0.002,2124.0,2123.8,0.49851779]
[1773365379884,0.002,2124.0,2123.4,2.80886337]
[1773365380193,0.53096966,2124.0,2123.5,1.59]
[1773365380583,1.70803653,2124.0,2123.5,2.76730066]
[1773365381015,1.70803653,2124.0,2123.5,1.59]
[1773365381216,0.46811844,2123.9,2123.5,1.59]
[1773365381514,0.5269752,2123.8,2123.2,1.17746797]
[1773365381681,0.5289752,2123.8,2123.2,1.17746797]
[1773365382713,1.70614023,2123.8,2123.2,1.17746797]
[1773365384302,1.70614023,2123.8,2123.1,1.67601036]
[1773365384505,0.47667689,2123.7,2123.4,0.001]
[1773365384821,0.002,2123.6,2123.4,0.001]
[1773365384983,0.004,2123.6,2123.4,0.03617101]
[1773365385185,0.004,2123.6,2123.4,0.001]
[1773365388202,0.53753919,2123.6,2123.4,0.001]
[1773365388916,0.53553919,2123.6,2123.1,1.593]
[1773365389123,0.002,2123.5,2123.1,1.593]
[1773365389309,0.002,2123.5,2123.1,2.77052318]
[1773365389990,1.65399774,2123.5,2123.1,2.77052318]
[1773365390914,1.65399774,2123.5,2123.1,1.593]
[1773365392212,1.65199774,2123.5,2123.1,1.593]
[1773365392914,1.72611883,2123.6,2123.1,2.77051722]
[1773365393214,0.002,2123.5,2123.1,2.77051722]
[1773365393420,0.002,2123.5,2123.1,3.22337016]
[1773365394099,0.002,2123.5,2123.1,2.77051722]
[1773365394420,0.49000449,2123.5,2123.1,1.593]
[1773365396117,0.0608623,2123.6,2123.2,0.45285294]
[1773365396318,0.0628623,2123.6,2123.2,1.63027078]
[1773365397218,1.24011335,2123.6,2123.2,1.63027078]
[1773365398198,0.48800449,2123.5,2123.1,0.001]
[1773365398406,0.48800449,2123.5,2123.1,1.595]
[1773365399522,0.48800449,2123.5,2123.3,0.001]
[1773365399822,0.002,2123.4,2123.3,0.001]
[1773365400492,0.49000449,2123.3,2123.0,0.001]
[1773365401321,0.48800449,2123.1,2122.8,0.001]
[1773365402224,0.48800449,2123.1,2122.5,0.001]
[1773365402529,1.17936225,2123.4,2122.9,0.45285294]
[1773365402695,1.2382301,2123.4,2122.9,0.45285294]
[1773365403518,1.17936654,2123.4,2122.9,0.45285294]
[1773365403723,1.17936654,2123.4,2122.8,1.596]
[1773365403724,0.48800449,2123.3,2122.8,1.596]
[1773365404632,0.48800449,2123.3,2122.4,4.71162145]
[1773365404633,0.48800449,2123.0,2122.2,1.17901868]
[1773365404933,0.48800449,2123.0,2122.2,0.001]
[1773365405130,0.48800449,2123.2,2122.5,0.45285294]
[1773365405640,3.29295067,2123.2,2122.5,0.45285294]
[1773365405796,0.48800449,2123.1,2122.3,0.45285294]
[1773365406223,0.48800449,2123.1,2122.2,1.17901672]
[1773365406600,0.48800449,2122.9,2122.2,1.17901672]
[1773365406797,0.48800449,2122.9,2122.2,0.001]
[1773365407529,0.48800449,2122.9,2122.2,0.45385294]
[1773365408526,1.66547467,2123.2,2122.5,1.1778563]
[1773365408704,1.72434806,2123.2,2122.5,1.63070924]
[1773365409328,1.72434806,2123.2,2122.6,1.598]
[1773365410040,0.48800449,2123.1,2122.6,1.598]
[1773365410808,0.48800449,2123.3,2122.7,0.45285294]
[1773365411930,0.06086785,2123.4,2122.7,0.45285294]
[1773365412117,0.002,2123.4,2122.7,0.45285294]
[1773365412319,0.002,2123.4,2122.6,5.08610626]
[1773365412320,0.002,2123.6,2122.9,2.31034558]
[1773365412639,0.002,2123.6,2123.3,0.45285294]
[1773365412808,0.002,2123.6,2123.4,2.77535706]
[1773365413134,0.002,2123.6,2123.4,3.22821]
[1773365413305,0.002,2123.6,2123.4,1.598]
[1773365414214,0.002,2124.0,2123.5,0.45285294]
[1773365414833,0.002,2124.0,2123.8,0.45285294]
[1773365415039,0.002,2124.0,2123.7,1.599]
[1773365415040,0.49000449,2124.0,2123.7,1.599]
[1773365415413,0.002,2124.0,2123.7,2.05185294]
[1773365416546,0.002,2124.2,2123.8,0.45285294]
[1773365416853,0.49000449,2124.2,2123.3,1.17741251]
[1773365417074,0.49000449,2124.2,2123.6,1.6]
[1773365417075,0.48800449,2124.0,2123.6,1.6]
[1773365417209,0.48800449,2124.0,2123.4,1.6]
[1773365417404,0.48800449,2123.8,2123.2,1.21260145]
[1773365417604,0.48800449,2123.8,2123.3,1.6]
[1773365418037,0.002,2123.7,2123.3,1.6]
[1773365418538,0.002,2123.6,2123.3,1.6]
[1773365418835,0.002,2123.9,2123.4,1.17735706]
[1773365419010,0.002,2123.9,2122.9,1.63044584]
[1773365419011,0.54885848,2123.9,2122.9,1.63044584]
[1773365419210,0.49000449,2123.9,2123.0,2.08903624]
[1773365419613,0.48800449,2123.6,2122.9,1.601]
[1773365419936,0.48800449,2123.4,2122.9,1.601]
[1773365421044,0.002,2123.3,2123.0,1.17757889]
[1773365423541,0.45751992,2123.9,2123.2,2.30959683]
[1773365423750,0.51637668,2123.8,2123.0,1.17757889]
[1773365425340,1.63471067,2123.7,2123.0,1.17757889]
[1773365426039,0.45751992,2123.7,2123.1,0.46043107]
[1773365426741,0.51637114,2124.0,2123.2,0.49561106]
[1773365427240,0.51637114,2124.0,2123.2,0.49661106]
[1773365427544,0.002,2123.8,2123.3,1.17741251]
[1773365427711,0.51837668,2123.8,2123.3,1.17741251]
[1773365428045,0.002,2123.8,2123.5,0.46043107]
[1773365429545,0.002,2123.8,2123.6,1.17724618]
[1773365431131,0.002,2123.8,2123.3,4.70963546]
[1773365431132,0.45951992,2123.8,2123.3,1.1773826]
[1773365431349,0.45951992,2123.8,2123.4,1.604]
[1773365431532,1.17724618,2123.6,2123.4,1.604]
[1773365432108,1.6347661,2123.6,2123.4,1.604]
[1773365432224,1.6347661,2123.6,2123.2,0.001]
[1773365432856,0.45751992,2123.5,2123.2,0.001]
[1773365433361,0.45751992,2123.6,2123.2,1.17844732]
[1773365433522,0.45751992,2123.5,2123.2,0.001]
[1773365435645,1.63483137,2123.5,2123.2,0.001]
[1773365435855,0.45751992,2123.5,2123.2,0.001]
[1773365436363,1.63482388,2123.5,2123.2,0.001]
[1773365436654,1.23612912,2123.6,2123.2,0.001]
[1773365436859,0.45751992,2123.5,2123.2,0.001]
[1773365438147,0.45751992,2123.4,2123.0,1.17857717]
[1773365439970,1.63688411,2123.4,2123.0,0.001]
[1773365440163,1.63688411,2123.4,2123.1,0.001]
[1773365440732,0.45951992,2123.4,2123.1,0.001]
[1773365440932,0.45951992,2123.4,2123.1,0.46143107]
[1773365440933,0.002,2123.4,2123.1,0.46143107]
[1773365441138,0.002,2123.4,2123.1,0.001]
[1773365446068,0.51350373,2123.4,2123.1,0.001]
[1773365446571,1.69090013,2123.4,2123.1,0.001]
[1773365446772,0.45263588,2123.3,2122.9,0.001]
[1773365447109,0.45263588,2123.2,2122.7,0.001]
[1773365447376,0.45263588,2123.1,2122.7,0.001]
[1773365448178,0.45263588,2123.0,2122.2,1.609]
[1773365448492,0.45263588,2122.7,2122.2,0.001]
[1773365450581,0.46380224,2122.5,2122.2,0.001]
[1773365452869,6.01855377,2123.2,2122.2,0.45993758]
[1773365452870,0.46380224,2123.0,2122.2,0.45993758]
[1773365453070,0.46380224,2122.9,2122.2,0.001]
[1773365453779,0.46380224,2122.9,2122.4,0.001]
[1773365454187,0.46380224,2122.9,2122.2,0.001]
[1773365454785,0.46380224,2122.7,2122.2,0.001]
[1773365457461,1.64155414,2122.7,2122.2,0.001]
[1773365459999,1.1777519,2122.7,2122.2,0.45993758]
[1773365461601,1.7004414,2122.7,2122.2,1.63792957]
[1773365461901,1.7004414,2122.7,2122.2,1.17899199]
[1773365462130,1.7004414,2122.7,2122.2,0.001]
[1773365462131,0.46380224,2122.6,2122.2,0.001]
[1773365462392,0.46380224,2122.4,2121.9,0.001]
[1773365463195,1.1777519,2122.7,2121.9,1.6381214]
[1773365463390,0.46380224,2122.6,2121.9,1.6381214]
[1773365464064,1.17791179,2122.4,2121.9,1.6381214]
[1773365464484,1.64169254,2122.5,2121.9,1.6381214]
[1773365464689,0.46380224,2122.4,2121.9,1.6381214]
[1773365466086,0.52269782,2122.4,2121.9,1.6381214]
[1773365466697,1.70066096,2122.4,2121.9,1.6381214]
[1773365466889,1.70066096,2122.4,2122.1,0.001]
[1773365472019,0.05889558,2122.4,2122.1,0.45993758]
[1773365472225,1.64164134,2122.6,2122.1,0.45993758]
[1773365473087,1.1778391,2122.6,2122.1,0.45993758]
[1773365474210,5.17481481,2122.7,2122.1,1.63797948]
[1773365474419,1.64154756,2122.7,2122.2,0.45893758]
[1773365474716,0.46380224,2122.7,2122.2,0.45893758]
[1773365474911,0.5226895,2122.7,2122.2,0.45893758]
[1773365475496,1.64153337,2122.8,2122.2,0.45893758]
[1773365475708,0.5226895,2122.7,2122.2,0.45893758]
[1773365475894,0.5226895,2122.7,2122.1,0.001]
[1773365475895,0.46380224,2122.6,2122.1,0.001]
[1773365476214,0.46380224,2122.3,2122.1,0.001]
[1773365476424,0.5227006,2122.3,2122.1,0.001]
[1773365476623,4.71157407,2122.5,2122.1,0.001]
[1773365476624,1.17790154,2122.5,2122.1,0.001]
[1773365477789,0.46380224,2122.6,2122.1,0.45993758]
[1773365477991,2.87659851,2122.7,2122.1,0.45993758]
[1773365478190,0.05888726,2122.7,2122.1,0.45993758]
[1773365479318,0.05888726,2122.7,2122.2,2.07193758]
[1773365479515,0.002,2122.4,2122.2,2.07193758]
[1773365479723,0.002,2122.4,2122.3,1.17796729]
[1773365480025,0.002,2122.4,2122.3,0.45893758]
[1773365483010,0.002,2122.4,2122.3,1.63690487]
[1773365483236,0.49471316,2122.4,2122.1,0.001]
[1773365483607,0.002,2122.4,2122.2,0.48753672]
[1773365483803,0.002,2122.4,2122.1,0.001]
[1773365484333,0.002,2122.4,2122.1,2.79407607]
[1773365484698,0.002,2122.4,2122.2,0.48753672]
[1773365484904,0.002,2122.4,2122.3,1.17796729]
[1773365485329,0.002,2122.6,2122.3,1.66550401]
[1773365486230,0.002,2122.6,2122.4,0.48753672]
[1773365487002,0.002,2122.6,2122.5,1.66539302]
[1773365488010,0.002,2122.6,2122.5,3.28139302]
[1773365488333,0.002,2123.2,2122.6,0.48753672]
[1773365488540,0.002,2123.2,2122.7,0.48753672]
[1773365489937,0.002,2123.2,2122.8,1.66522656]
[1773365490917,0.002,2123.2,2123.0,1.617]
[1773365491314,0.002,2123.2,2123.0,2.10453672]
[1773365491517,0.002,2123.4,2123.1,0.48753672]
[1773365492042,0.002,2123.4,2123.2,1.17746797]
[1773365493646,0.49471316,2123.4,2122.7,1.17774532]
[1773365493953,0.49271316,2123.2,2122.8,1.619]
[1773365494126,0.49271316,2123.2,2122.6,5.19851801]
[1773365494127,0.49271316,2123.2,2122.6,1.1777624]
[1773365494446,1.23629941,2123.3,2122.7,1.619]
[1773365494447,0.49271316,2123.0,2122.7,1.619]
[1773365495348,0.05887339,2123.2,2122.7,1.619]
[1773365495349,0.49271316,2123.2,2122.7,1.619]
[1773365495847,1.17939276,2123.4,2122.9,1.17763436]
[1773365495848,1.67208065,2123.4,2122.9,1.17763436]
[1773365496058,1.7309485,2123.4,2122.9,1.17763436]
[1773365496971,0.49271316,2123.3,2122.9,1.17763436]
[1773365497135,0.49271316,2123.3,2122.9,2.79863436]
[1773365498321,0.002,2123.4,2123.0,0.48753672]
[1773365500137,0.002,2123.4,2122.9,5.11073172]
[1773365500458,0.49471316,2123.4,2123.0,1.622]
[1773365501045,0.002,2123.4,2123.0,2.10953672]
[1773365501853,0.55358101,2123.4,2122.8,1.17765085]
[1773365502050,0.49471316,2123.4,2123.0,1.623]
[1773365503561,0.49471316,2123.4,2123.1,1.17752343]
[1773365503733,0.002,2123.4,2123.1,1.17752343]
[1773365503929,0.002,2123.4,2122.5,11.64705145]
[1773365503930,0.002,2123.4,2122.5,0.45986944]
[1773365504142,0.002,2123.4,2122.7,0.45986944]
[1773365504143,1.23823458,2123.4,2122.7,0.45986944]
[1773365504340,0.06086785,2123.4,2122.7,0.45986944]
[1773365504545,0.002,2123.4,2122.9,0.45986944]
[1773365505861,0.002,2123.4,2123.2,0.001]
[1773365510863,0.47999522,2123.4,2123.2,0.001]
[1773365511334,0.002,2123.4,2123.2,0.001]
[1773365512158,0.47999522,2123.4,2123.0,0.001]
[1773365512465,0.002,2123.4,2123.0,0.001]
[1773365512654,0.47999522,2123.4,2123.0,0.001]
[1773365513461,0.002,2123.4,2123.0,0.49752549]
[1773365514863,0.002,2123.4,2123.1,1.626]
[1773365515358,0.002,2123.4,2123.2,1.17746797]
[1773365515766,0.002,2123.4,2123.1,2.80349717]
[1773365516976,0.002,2123.4,2123.1,3.30002266]
[1773365517541,0.002,2123.7,2123.2,0.49652549]
[1773365518365,0.002,2123.7,2123.4,0.49652549]
[1773365519651,0.002,2123.7,2123.5,1.67382711]
[1773365519852,0.002,2123.7,2123.6,1.627]
[1773365521985,0.47999522,2123.7,2123.3,0.001]
[1773365522280,0.47999522,2123.7,2123.3,2.80640335]
[1773365523656,0.47999522,2123.7,2123.3,1.17840335]
[1773365523956,0.47999522,2123.7,2123.3,2.80640335]
[1773365524170,0.002,2123.7,2123.3,2.80640335]
[1773365524349,0.002,2123.7,2123.3,3.30292884]
[1773365530600,0.002,2123.7,2123.4,0.49652549]
[1773365530805,0.002,2123.9,2123.4,0.49652549]
[1773365531872,0.002,2123.9,2123.6,0.49652549]
[1773365532098,0.002,2123.9,2123.7,1.632]
[1773365532571,0.002,2123.9,2123.8,1.17713532]
[1773365533200,0.002,2123.9,2123.8,1.67366081]
[1773365534517,0.47999522,2123.9,2123.7,1.633]
[1773365535200,0.002,2123.9,2123.7,1.633]
[1773365536906,0.002,2123.9,2123.7,2.81015608]
[1773365537233,1.65486945,2124.3,2123.8,0.49652549]
[1773365537580,1.65486189,2124.3,2123.8,0.49652549]
[1773365537780,1.23567629,2124.4,2123.8,0.49652549]
[1773365538598,5.18509308,2124.5,2124.0,0.49652549]
[1773365538599,0.47799522,2124.5,2124.0,0.49652549]
[1773365538917,1.17671768,2124.6,2124.1,1.67349455]
[1773365539090,1.7135475,2124.6,2124.1,1.67349455]
[1773365539291,0.47799522,2124.5,2124.2,1.635]
[1773365539488,0.47799522,2124.5,2123.9,2.30847322]
[1773365539695,0.47799522,2124.3,2124.0,1.635]
[1773365539991,0.47799522,2124.3,2123.8,1.635]
[1773365541304,0.49566641,2124.1,2123.8,1.635]
[1773365541810,0.49566641,2124.1,2123.8,1.636]
[1773365543110,1.67268161,2124.1,2123.8,1.636]
[1773365543481,0.49566641,2124.0,2123.8,1.636]
[1773365546103,0.05884568,2124.2,2123.9,0.47321421]
[1773365546283,0.002,2124.3,2123.9,1.39680837]
[1773365546483,1.18097153,2124.3,2123.9,1.39680837]
[1773365547005,1.18097153,2124.3,2124.0,0.47321421]
[1773365547221,0.002,2124.3,2124.0,0.47321421]
[1773365547711,0.002,2124.3,2124.1,1.65018327]
[1773365548204,0.002,2124.3,2123.8,2.78126525]
[1773365548412,1.18097153,2124.3,2123.9,2.11121421]
[1773365548622,1.18097153,2124.3,2124.0,0.47321421]
[1773365549820,1.18097153,2124.3,2124.1,1.17696906]
[1773365550038,0.002,2124.6,2124.2,0.47321421]
[1773365550325,1.09381807,2124.4,2124.2,0.47321421]
[1773365550925,1.09381807,2124.4,2124.1,1.17696906]
[1773365551125,1.09381807,2124.4,2124.1,1.65018327]
[1773365551521,1.09381807,2124.4,2123.9,3.28825174]
[1773365552250,1.09381807,2124.4,2123.6,4.70879161]
[1773365552251,0.55450932,2124.3,2123.6,0.47321421]
[1773365552421,0.55450932,2124.3,2123.7,1.639]
[1773365553423,0.55450932,2124.3,2123.7,2.11221421]
[1773365554108,0.49566641,2124.1,2123.7,1.639]
[1773365554521,0.49566641,2124.1,2123.7,2.816143]
[1773365556127,0.49566641,2124.1,2123.8,0.001]
[1773365556493,0.49766641,2124.1,2123.8,0.001]
[1773365557933,0.49566641,2123.9,2123.5,0.001]
[1773365558133,1.6727848,2123.9,2123.5,0.001]
[1773365558928,0.49566641,2123.8,2123.5,0.001]
[1773365559130,0.49566641,2123.8,2123.3,0.001]
[1773365559330,0.49566641,2123.8,2123.0,0.001]
[1773365559504,0.49566641,2123.8,2123.1,1.177143]
[1773365560333,0.49566641,2123.6,2123.1,2.35466435]
[1773365560831,0.49566641,2123.6,2123.1,1.177143]
[1773365562814,1.67296803,2123.5,2123.1,1.177143]
[1773365563553,0.47579082,2123.4,2123.1,1.177143]
[1773365564114,0.47579082,2123.4,2122.8,0.001]
[1773365564319,0.47579082,2123.4,2122.8,0.64462099]
[1773365564542,0.47579082,2123.4,2122.8,0.001]
[1773365564744,0.47579082,2123.0,2122.8,0.001]
[1773365566046,0.47579082,2123.0,2122.3,0.001]
[1773365566222,0.47579082,2123.0,2122.5,0.64562099]
[1773365566422,0.47579082,2122.9,2122.3,0.001]
[1773365566628,0.47579082,2122.9,2122.3,0.64662099]
[1773365566941,0.47579082,2122.7,2122.3,0.64662099]
[1773365568843,1.17780081,2122.6,2122.5,0.001]
[1773365569025,1.17780081,2122.6,2122.3,1e-08]
[1773365569232,0.47579082,2122.5,2122.3,1e-08]
[1773365569627,0.47579082,2122.5,2122.1,0.001]
[1773365569842,0.47579082,2122.2,2121.9,0.001]
[1773365570040,0.47579082,2121.9,2121.6,0.001]
[1773365570246,0.47579082,2121.9,2121.6,0.004]
[1773365570952,1.17824488,2121.8,2121.6,0.004]
[1773365571122,1.67809833,2121.8,2121.5,1e-08]
[1773365572029,1.17824488,2121.8,2121.5,1e-08]
[1773365572843,1.67809833,2121.8,2121.5,1e-08]
[1773365574253,0.49985345,2121.7,2121.5,1e-08]
[1773365575738,0.49985345,2121.6,2121.3,0.001]
[1773365576254,1.17818935,2121.9,2121.3,0.45172633]
[1773365576456,1.67802946,2122.0,2121.3,0.45172633]
[1773365576759,1.67802744,2122.0,2121.3,0.45172633]
[1773365577058,1.23698422,2122.1,2121.5,0.45072633]
[1773365577259,1.17804724,2122.2,2121.5,0.45072633]
[1773365577754,0.05890391,2122.1,2121.5,0.45072633]
[1773365578357,1.23698756,2122.1,2121.6,1.17835595]
[1773365578739,1.67789798,2122.2,2121.6,1.17835595]
[1773365579257,0.05890391,2122.1,2121.6,1.62908228]
[1773365579459,1.17804453,2122.2,2121.7,0.45072633]
[1773365579758,1.1780113,2122.3,2121.7,0.45072633]
[1773365580165,0.05890114,2122.2,2121.7,0.45072633]
[1773365580529,4.7117962,2122.4,2121.7,1.62898576]
[1773365581043,4.7117962,2122.4,2121.8,0.001]
[1773365581356,0.05889836,2122.3,2121.8,0.45172633]
[1773365581560,1.17988498,2122.5,2121.9,0.45072633]
[1773365581734,0.05889558,2122.4,2121.9,0.45072633]
[1773365582310,0.06089281,2122.5,2121.9,0.45072633]
[1773365582446,1.52196654,2122.7,2122.1,0.45072633]
[1773365582763,0.34420957,2122.7,2122.1,2.08972633]
[1773365582935,0.40303914,2122.7,2122.2,0.45072633]
[1773365584229,1.58079269,2122.7,2122.2,0.45072633]
[1773365584463,1.58079269,2122.7,2122.3,0.45072633]
[1773365585432,0.40303914,2122.7,2122.3,0.45072633]
[1773365585945,0.34420957,2122.7,2122.3,0.45072633]
[1773365586546,0.34420957,2122.7,2122.3,1.6286671]
[1773365587952,0.34420957,2122.7,2122.4,0.45072633]
[1773365589573,0.49985345,2122.6,2121.9,0.45072633]
[1773365589868,0.05882957,2122.5,2121.9,0.45072633]
[1773365590668,0.05882957,2122.5,2121.8,2.81823323]
[1773365590669,0.55868302,2122.5,2121.8,2.81823323]
[1773365591180,0.55868302,2122.5,2121.8,0.001]
[1773365591364,0.49985345,2122.3,2121.8,0.001]
[1773365591676,0.55868302,2122.3,2121.8,0.001]
[1773365593690,1.67787625,2122.2,2122.1,0.001]
[1773365594675,4.77276568,2122.3,2122.1,0.001]
[1773365594676,0.06082957,2122.3,2122.1,0.001]
[1773365594851,1.23882232,2122.3,2122.1,0.45172633]
[1773365595050,1.23880002,2122.3,2122.1,0.001]
[1773365597766,1.23880002,2122.3,2121.8,0.001]
[1773365597767,0.49985345,2122.2,2121.8,0.001]
[1773365597967,1.17807831,2122.1,2121.8,0.001]
[1773365599450,1.67793176,2122.1,2121.8,0.001]
[1773365599674,0.49985345,2122.0,2121.8,0.001]
[1773365600179,1.17818935,2121.9,2121.8,0.001]
[1773365602866,1.17818935,2121.9,2121.6,0.001]
[1773365603092,1.18000959,2122.3,2121.6,0.46584361]
[1773365603587,1.1799712,2122.3,2121.6,0.46584361]
[1773365603771,0.05882957,2122.2,2121.8,0.46484361]
[1773365604987,1.17807831,2122.1,2121.8,0.46484361]
[1773365605788,0.05882957,2122.0,2121.8,0.46484361]
[1773365605991,0.002,2122.3,2121.9,0.46484361]
[1773365606998,0.002,2122.5,2122.0,0.46484361]
[1773365607320,0.002,2122.5,2122.0,0.46584361]
[1773365607321,0.002,2122.1,2122.0,0.46584361]
[1773365607459,0.002,2122.5,2122.1,0.46484361]
[1773365608189,0.002,2122.7,2122.1,0.46484361]
[1773365608368,0.002,2122.7,2122.3,0.46484361]
[1773365608900,0.002,2122.7,2122.4,1.6427554]
[1773365609671,0.002,2122.7,2122.5,0.46484361]
[1773365612511,0.002,2122.7,2122.6,1.64264442]
[1773365614092,0.002,2123.0,2122.8,0.46484361]
[1773365614295,1.17739536,2123.4,2122.8,0.46484361]
[1773365614499,1.17724618,2123.6,2123.1,0.46484361]
[1773365615279,4.70870881,2123.8,2123.1,0.46484361]
[1773365615475,5.1649539,2123.8,2123.1,0.46484361]
[1773365616683,5.1649539,2123.8,2123.1,1.64231892]
[1773365617004,5.1649539,2123.8,2123.2,0.46484361]
[1773365617184,1.17713532,2123.8,2123.2,0.46484361]
[1773365617387,1.51962226,2123.9,2123.2,0.46484361]
[1773365618189,0.34250276,2123.9,2123.4,0.46484361]
[1773365618488,0.34250276,2123.9,2123.5,0.46484361]
[1773365618707,0.34250276,2123.9,2123.6,1.17724618]
[1773365619014,0.34250276,2123.9,2123.5,1.64211445]
[1773365619414,0.34250276,2123.9,2123.6,0.46484361]
[1773365619585,1.51958299,2123.9,2123.6,0.46484361]
[1773365619981,0.34250276,2123.9,2123.6,0.46484361]
[1773365620213,0.002,2123.8,2123.6,0.46484361]
[1773365622212,0.002,2123.8,2123.7,0.46484361]
[1773365623317,0.002,2123.8,2123.7,1.64203436]
[1773365625210,0.002,2124.1,2123.7,1.64203436]
[1773365625919,0.49415877,2124.1,2123.6,0.47228415]
[1773365626220,0.49415877,2124.1,2123.6,1.637]
[1773365626791,0.002,2124.1,2123.7,0.47228415]
[1773365628234,0.002,2124.1,2123.6,0.47228415]
[1773365629493,0.002,2124.1,2123.6,2.11028415]
[1773365630188,1.17896906,2124.1,2123.6,2.11028415]
[1773365631821,1.17896906,2124.1,2123.7,0.45781543]
[1773365631822,0.002,2124.1,2123.7,0.45781543]
[1773365632027,0.002,2124.1,2123.8,0.45781543]
[1773365632226,0.002,2124.1,2123.9,1.63489533]
[1773365632407,0.002,2124.1,2124.0,0.45781543]
[1773365633809,0.002,2124.3,2124.0,0.45781543]
[1773365634530,0.002,2124.3,2124.0,1.63479241]
[1773365634715,0.002,2124.3,2124.1,0.45781543]
[1773365634913,0.002,2124.6,2124.1,0.45781543]
[1773365635102,1.66946223,2125.1,2124.5,0.45781543]
[1773365635309,4.70553422,2125.2,2124.5,0.45781543]
[1773365635310,1.51598216,2125.3,2124.6,0.45781543]
[1773365635625,0.33965439,2125.3,2124.6,0.45781543]
[1773365635831,0.33965439,2125.3,2124.9,0.45781543]
[1773365636012,0.33965439,2125.3,2125.1,0.45781543]
[1773365636542,0.33965439,2125.3,2125.1,1.63420029]
[1773365637237,0.33965439,2125.3,2125.1,0.45781543]
[1773365637833,0.33965439,2125.3,2125.1,1.63422679]
[1773365638338,0.33965439,2125.3,2125.2,0.45781543]
[1773365638670,4.70367959,2126.0,2125.3,1.17630452]
[1773365638671,1.17591721,2126.0,2125.3,1.17630452]
[1773365638951,1.17591721,2126.0,2125.4,0.45781543]
[1773365639838,1.17591721,2126.0,2124.9,4.70609315]
[1773365639839,0.49304701,2125.7,2124.8,0.45781543]